Cogmind - Beta 13 @@@ ROGUE MODE // 2024.02.23 @ 02:32:36 Player: cptwinky Result: Escaped! Performance ------------- Evolutions (9) 4500 Regions Visited (29) 5800 Robots Destroyed (478) 2390 Value Destroyed (22030) 22030 Prototype IDs (40) 800 Alien Tech Used (0) 0 Bonus (16180) 16180 TOTAL SCORE: 51700 Bonus ------- High Alert Combat Kills 3643 Follower Combat Kills 4134 Entered Garrisons 2000 Used RIF Installer 6000 Win 3000 Friendly Fire -2597 Cogmind --------- Core Integrity 1586/1600 Matter 244/300 Energy 527/530 System Corruption 2% Temperature Cool (41) Movement Rolling (110) Ox1 Location To Epsilon Eridani Parts ------- > --- POWER (3) -------- Quantum Reactor Light Quantum Reactor Light Quantum Reactor > --- PROPULSION (8) --- Advanced Medium Treads Improved Heavy Siege Treads Improved Heavy Siege Treads Centrium Wheel Centrium Wheel High-density Centrium Wheel > --- UTILITY (12) ----- Improved Targeting Computer Advanced Targeting Computer Advanced Phase Shifter Improved Force Field Relay Coupler [NC] (33) Relay Coupler [Swarmer] (30) Relay Coupler [Grunt] (24) Relay Coupler [Sentry] (23) Relay Coupler [Hunter] (1) Relay Coupler [Heavy] (11) > --- WEAPON (2) ------- Enhanced Nova Cannon Compact Linear Accelerator > --- INVENTORY (5) ---- YI-UF0's Bottomless Matter Pit (1200) Hypervelocity Multirail Gamma Bomb Array Improved Remote Datajack Improved Remote Datajack Peak State ------------ > --- POWER ------------ Reinforced Antimatter Reactor Quantum Reactor Improved Quantum Reactor > --- PROPULSION ------- Enhanced Armored Medium Treads Enhanced Armored Medium Treads Enhanced Armored Medium Treads Improved Heavy Treads Improved Heavy Treads Biometal Medium Treads > --- UTILITY ---------- Improved Cooling System Huge Storage Unit Energy Well Improved Weapon Cycler Improved Remote Force Field Relay Coupler [NC] Relay Coupler [Swarmer] Relay Coupler [Grunt] Relay Coupler [Sentry] Relay Coupler [Hunter] > --- WEAPON ----------- Linear Accelerator Linear Accelerator > --- INVENTORY -------- Medium Treads Energy Well YI-UF0's Bottomless Matter Pit Improved Remote Force Field Relay Coupler [NC] Relay Coupler [NC] Relay Coupler [Swarmer] Relay Coupler [Grunt] Relay Coupler [Sentry] Relay Coupler [Hunter] Relay Coupler [Heavy] Relay Coupler [Heavy] Improved Component Analysis Suite Enhanced Nova Cannon Railgun Linear Accelerator Linear Accelerator Compact Linear Accelerator Gamma Bomb Array Gamma Bomb Array Micro-nuke Launcher Remote Datajack Improved Remote Datajack Improved Remote Datajack Powered Hammer [Rating: 156] Favorites ----------- Power Cooled Ion Engine Engine Cooled Ion Engine Power Core Neutrino Core Reactor Antimatter Reactor Propulsion Light Treads Treads Light Treads Leg Aluminum Leg Wheel Wheel Flight Unit Improved Flight Unit Utility High-capacity Storage Unit Device Shield Generator Storage High-capacity Storage Unit Processor Advanced Targeting Computer Hackware Hacking Suite Protection Improved Medium Armor Plating Weapon Advanced Assault Cannon Energy Gun Improved EM Shotgun Energy Cannon Heavy Particle Cannon Ballistic Gun Light Assault Rifle Ballistic Cannon Advanced Assault Cannon Launcher Heavy Rocket Launcher Special Weapon Remote Datajack Impact Weapon Powered Hammer Slashing Weapon Great Axe Special Melee Weapon Datajack Build | -11 -10 -10 -9 -9 -9 -8 -8 -8 -8 -8 -8 -8 -7 -7 -7 -7 -7 -7 -6 -6 -5 -5 -4 -4 -3 -3 -2 -2 -1 ------- Run | Yrd Mat Min Mat Min Exi Min Mat Gar Mat Gar Mat Gar Fac Gar Fac Gar Fac Gar Fac Gar Fac Gar Fac Gar Res Gar Res Tes Acc Slots Evolved 18 | . . . 2 . . . 2 . . . . . 2 . . . . . 2 . 2 . 2 . 2 . 2 . 2 Power 2 | . . . . . . . . . . . . . . . . . . . 1 . . . . . 1 . . . . Propulsion 6 | . . . 1 . . . . . . . . . 1 . . . . . . . 1 . 1 . . . 2 . . Utility 10 | . . . 1 . . . 2 . . . . . 1 . . . . . 1 . 1 . 1 . 1 . . . 2 Weapon . | . . . . . . . . . . . . . . . . . . . . . . . . . . . . . . Parts Attached 505 | 2 8 2 31 7 3 10 48 18 20 12 21 36 20 14 1 17 18 38 2 11 1 3 9 31 6 19 63 17 17 Power 30 | . 1 1 1 . . . 2 1 . . 1 1 . 4 . . . 1 . 1 . . . 4 1 2 3 4 2 Engine 15 | . 1 1 1 . . . 2 1 . . 1 1 . 2 . . . 1 . 1 . . . 3 . . . . . Core 2 | . . . . . . . . . . . . . . 1 . . . . . . . . . 1 . . . . . Reactor 13 | . . . . . . . . . . . . . . 1 . . . . . . . . . . 1 2 3 4 2 Propulsion 102 | 2 3 1 11 1 . 1 12 4 9 6 3 5 1 3 . 3 2 8 . 1 . 1 2 5 . . 11 4 3 Treads 88 | 2 2 1 9 1 . . 12 4 9 6 3 5 1 3 . 3 2 4 . 1 . 1 2 5 . . 8 3 1 Leg 4 | . . . . . . . . . . . . . . . . . . 4 . . . . . . . . . . . Wheel 9 | . . . 2 . . 1 . . . . . . . . . . . . . . . . . . . . 3 1 2 Hover . | . . . . . . . . . . . . . . . . . . . . . . . . . . . . . . Flight 1 | . 1 . . . . . . . . . . . . . . . . . . . . . . . . . . . . Utility 157 | . 2 . 9 2 1 2 10 5 4 1 3 5 6 2 1 6 10 13 2 6 1 . 5 13 3 8 28 4 5 Device 65 | . 1 . 4 2 . 1 4 3 1 1 1 1 . 1 . 3 3 3 . 2 1 . 3 7 3 4 13 2 1 Storage 16 | . 1 . 2 . 1 1 . . . . . . 1 . . . 1 . . . . . 2 . . 2 4 . 1 Processor 10 | . . . . . . . 1 . . . . . 1 . . . 1 . 1 1 . . . . . . 3 1 1 Hackware 32 | . . . . . . . 3 . . . 1 1 2 1 . 1 3 4 1 . . . . 4 . 1 7 1 2 Protection 34 | . . . 3 . . . 2 2 3 . 1 3 2 . 1 2 2 6 . 3 . . . 2 . 1 1 . . Artifact . | . . . . . . . . . . . . . . . . . . . . . . . . . . . . . . Weapon 216 | . 2 . 10 4 2 7 24 8 7 5 14 25 13 5 . 8 6 16 . 3 . 2 2 9 2 9 21 5 7 Energy Gun 7 | . . . 1 1 . 4 . . . . . . . . . . . . . . . 1 . . . . . . . Energy Cannon 22 | . . . . . . . 2 . 2 . . 4 6 2 . . . 1 . . . . . . . . . 1 4 Ballistic Gun 6 | . . . . 1 . . . . . . . . . . . 1 . 1 . 1 . . . 1 . . . 1 . Ballistic Cannon 97 | . 2 . 7 2 1 2 12 4 3 3 8 8 . 1 . 4 2 10 . 1 . 1 1 5 1 6 12 1 . Launcher 24 | . . . . . . 1 7 3 1 2 . 5 3 . . . . . . . . . . . . . 2 . . Special Weapon 35 | . . . . . . . . . . . 3 2 2 2 . 2 2 3 . . . . 1 3 1 2 7 2 3 Impact Weapon 9 | . . . . . . . . 1 1 . 1 1 1 . . . 1 1 . 1 . . . . . 1 . . . Slashing Weapon 1 | . . . . . . . . . . . . 1 . . . . . . . . . . . . . . . . . Piercing Weapon . | . . . . . . . . . . . . . . . . . . . . . . . . . . . . . . Special Melee Weapon 15 | . . . 2 . 1 . 3 . . . 2 4 1 . . 1 1 . . . . . . . . . . . . Unidentified Prototypes 12 | . 1 . 1 . . 2 . . . . . . . . . . . . . 1 . . . . 1 . 3 2 1 Corrupted Parts 2 | . . . . . . 2 . . . . . . . . . . . . . . . . . . . . . . . System Corruption 2 | . . . . . . 2 . . . . . . . . . . . . . . . . . . . . . . . Parts Lost 63 | . . 1 8 . . 3 1 3 . 1 . 2 1 . . 2 2 3 . . . . . 3 . 4 20 8 1 Power 4 | . . . . . . . . . . . . . . . . . . . . . . . . . . . 3 1 . Propulsion 23 | . . 1 4 . . 1 . . . . . . . . . 2 1 2 . . . . . . . . 8 4 . Utility 24 | . . . 1 . . 1 1 3 . 1 . 1 1 . . . 1 1 . . . . . 2 . 4 3 3 1 Weapon 12 | . . . 3 . . 1 . . . . . 1 . . . . . . . . . . . 1 . . 6 . . Highest Loss Streak 17 | . . 1 2 . . 3 1 2 . 1 . 2 1 . . 1 1 2 . . . . . 1 . 1 17 6 1 To Critical Strikes 2 | . . . 1 . . . . . . . . . . . . . . . . . . . . . . . 1 . . Average Slot Usage (%) 90 | . 92 100 94 100 100 98 99 94 100 100 99 96 93 86 82 87 88 81 73 73 70 74 76 79 79 76 76 68 80 Engine 7 | . 14 14 11 11 11 11 9 9 9 9 9 9 7 1 . . . 6 6 10 11 11 10 7 9 8 1 . . Reactor 1 | . . . . . . . . . . . . . . 3 7 7 7 . . . . . . . 3 4 8 5 12 Treads 24 | . 28 28 30 33 33 31 26 26 27 27 27 27 30 30 30 29 29 20 20 15 11 15 21 17 14 14 14 6 9 Device 7 | . 7 14 12 15 22 20 9 3 9 9 4 . 1 3 7 7 3 . . . 5 5 6 9 9 10 10 2 8 Storage 8 | . 14 14 11 11 11 11 9 9 9 9 9 9 7 7 7 7 7 7 6 6 5 5 6 5 4 4 6 . . Processor 5 | . . . . . . . 8 9 9 9 9 9 7 7 7 7 7 5 5 6 5 5 5 5 4 . . . 6 Hackware 11 | . . . . . . . 10 10 9 9 13 14 14 11 7 6 13 17 21 20 17 17 15 19 23 21 23 35 29 Protection 6 | . . . 5 6 . . 6 8 9 9 9 9 6 7 5 11 7 7 6 5 5 5 5 4 4 3 . . . Energy Cannon 2 | . . . . . . . 6 9 5 . . 3 6 3 . . . . . . . . . . . . . 1 2 Ballistic Cannon 10 | . 17 28 21 18 12 . 10 8 12 17 16 13 7 4 7 6 5 6 6 4 5 4 4 4 3 3 6 3 4 Naked Turns . | . . . . . . . . . . . . . . . . . . . . . . . . . . . . . . Heaviest Build 188 | 10 32 32 59 59 57 56 70 72 71 69 70 71 77 88 84 88 132 130 130 140 141 141 145 145 159 180 188 63 84 Greatest Support 295 | 40 40 40 63 63 63 63 63 60 62 60 63 63 80 80 80 92 92 135 135 150 150 170 203 225 220 220 295 225 52 Greatest Overweight (x) 5 | . . . 5 . . 5 5 1 1 1 1 1 . 1 1 1 1 3 . . . . . . . . 5 3 4 Average Overweight (x) . | . . . . . . . 1 1 1 1 . . . . 1 . . . . . . . . . . . . . 2 Largest Inventory Capacity 25 | 8 15 15 20 20 20 20 20 20 20 20 20 20 20 20 20 20 25 25 25 25 25 25 25 25 25 25 25 5 5 Average Capacity 20 | 8 14 15 19 20 20 20 20 20 20 20 20 20 20 20 20 20 23 25 25 25 25 25 25 25 25 25 22 5 5 Most Carried 25 | 6 15 15 20 20 20 20 20 20 20 20 20 20 20 20 20 20 21 25 25 25 24 25 25 25 25 25 25 5 5 Average Carried 19 | 6 12 14 16 19 19 19 19 19 19 19 19 19 18 19 20 19 19 24 24 24 23 24 24 24 23 24 21 4 4 Final Capacity 25 | 8 15 15 20 20 20 20 20 20 20 20 20 20 20 20 20 20 25 25 25 25 25 25 25 25 25 25 5 5 5 Final Carried 25 | 6 14 15 18 20 20 18 20 20 20 20 20 20 19 20 20 20 21 25 24 25 24 25 25 25 24 25 5 5 5 Class Distribution -------------------- 42% | Botlord-Mutant 25% | Bothacker-Mutant 18% | Mutant 10% | Scavenger-Mutant Dominant Class ---------------- Mutant | -10/Materials Mutant | -10/Mines Scavenger-Mutant | -9/Materials Scavenger-Mutant | -9/Mines Scavenger-Mutant | -9/Exiles Scavenger-Mutant | -8/Mines Mutant | -8/Materials Mutant | -8/Garrison Bothacker-Mutant | -8/Materials Bothacker-Mutant | -8/Garrison Bothacker-Mutant | -8/Materials Botlord-Mutant | -8/Garrison Bothacker-Mutant | -7/Factory Bothacker-Mutant | -7/Garrison Bothacker-Mutant | -7/Factory Botlord-Mutant | -7/Garrison Botlord-Mutant | -7/Factory Botlord-Mutant | -7/Garrison Botlord-Mutant | -6/Factory Botlord-Mutant | -6/Garrison Botlord-Mutant | -5/Factory Botlord-Mutant | -5/Garrison Botlord-Mutant | -4/Factory Botlord-Mutant | -4/Garrison Botlord-Mutant | -3/Research Botlord-Mutant | -3/Garrison Botlord-Mutant | -2/Research Botlord-Mutant | -2/Testing Botlord-Mutant | -1/Access Resources | -11 -10 -10 -9 -9 -9 -8 -8 -8 -8 -8 -8 -8 -7 -7 -7 -7 -7 -7 -6 -6 -5 -5 -4 -4 -3 -3 -2 -2 -1 ----------- Run | Yrd Mat Min Mat Min Exi Min Mat Gar Mat Gar Mat Gar Fac Gar Fac Gar Fac Gar Fac Gar Fac Gar Fac Gar Res Gar Res Tes Acc Matter Collected 19888 | 220 181 280 1159 388 20 113 1640 586 1287 946 1110 767 503 333 18 1110 478 894 . 471 188 194 100 1603 101 2157 2081 617 343 Remotely . | . . . . . . . . . . . . . . . . . . . . . . . . . . . . . . Salvage Created 15918 | . 269 132 1044 274 . 599 1433 651 1184 665 742 545 599 230 . 778 269 552 . 484 60 64 67 1036 158 829 1933 1194 127 Parts 818 | . 21 7 76 12 . 37 87 35 71 37 48 44 37 10 . 41 12 26 . 14 1 1 5 43 3 16 87 40 7 Haulers Intercepted 26 | . 1 . 4 . . . 6 . 6 . 5 . . . . . . . . . . . . . 1 . 2 1 . Recyclers Shooed 9 | . . . 4 . . . . . 1 . . . . . . . . . . . . . . . . . 3 1 . Parts Field Recycled . | . . . . . . . . . . . . . . . . . . . . . . . . . . . . . . Retrieved Matter . | . . . . . . . . . . . . . . . . . . . . . . . . . . . . . . Parts Self-Destructed . | . . . . . . . . . . . . . . . . . . . . . . . . . . . . . . Prevented . | . . . . . . . . . . . . . . . . . . . . . . . . . . . . . . Kills | -11 -10 -10 -9 -9 -9 -8 -8 -8 -8 -8 -8 -8 -7 -7 -7 -7 -7 -7 -6 -6 -5 -5 -4 -4 -3 -3 -2 -2 -1 ------- Run | Yrd Mat Min Mat Min Exi Min Mat Gar Mat Gar Mat Gar Fac Gar Fac Gar Fac Gar Fac Gar Fac Gar Fac Gar Res Gar Res Tes Acc Combat Hostiles Destroyed 387 | . 11 9 26 8 . 19 42 23 22 20 12 24 17 4 . 30 7 15 . 2 2 1 2 21 2 22 31 13 2 Melee 4 | . . . . . . . . 1 . . . 2 . . . . 1 . . . . . . . . . . . . Guns 35 | . 5 . . . . 18 . . . . . . . . . . . . . . . . . . . . . 12 . Cannons 279 | . 6 9 26 8 . . 21 15 19 14 12 11 8 4 . 30 5 14 . 2 2 1 2 21 2 22 23 . 2 AOE 63 | . . . . . . . 20 7 2 6 . 11 8 . . . 1 1 . . . . . . . . 7 . . Classes Destroyed 20 | . 3 . 7 . . . 3 2 1 . . 1 . . . . . . . . . . . . . 1 1 1 . Worker 17 | . . . 2 . . . 2 . 2 . 3 . 3 . . . 1 . . . . . . . . . 4 . . Builder 11 | . . . . . . . 2 . 2 . 1 . . . . . . . . . . . . . . . 5 1 . Hauler 26 | . 1 . 4 . . . 6 . 6 . 5 . . . . . . . . . . . . . 1 . 2 1 . Recycler 8 | . . . 3 . . . 1 . . . . . 2 . . . . . . . . . . . . . 1 1 . Mechanic 3 | . . . 1 . . . . . . . . . . . . . . . . . . . . . . . 1 1 . Operator 8 | . . . 2 . . . 2 . 2 . . . 2 . . . . . . . . . . . . . . . . Watcher 13 | . . . 3 . . . 3 . 4 . 2 1 . . . . . . . . . . . . . . . . . Swarmer 87 | . 6 6 3 3 . 13 4 7 3 3 . 7 9 . . 12 1 3 . . . . . 6 . 1 . . . Cutter 3 | . . . . . . . . . . . . 3 . . . . . . . . . . . . . . . . . Grunt 134 | . 5 3 12 4 . 6 24 11 9 8 9 5 4 . . 3 1 4 . . 2 . . 4 . 5 9 6 . Brawler 11 | . . . . . . . 3 . 1 . . . . 1 . . 1 1 . 1 . . . . . 3 . . . Duelist 18 | . . . 1 1 . . 1 2 . . . . . 1 . 2 2 2 . 1 . . . . . 3 2 . . Protector 1 | . . . . . . . 1 . . . . . . . . . . . . . . . . . . . . . . Researcher 1 | . . . . . . . . . . . . . . . . . . . . . . . . . . . . 1 . Sentry 68 | . . . 10 . . . 9 1 7 7 3 5 2 2 . 3 1 3 . . . 1 . 9 . 4 1 . . Specialist 6 | . . . . . . . . . 2 1 . . . . . 2 . . . . . . . . . . 1 . . Hunter 23 | . . . . . . . . 1 . 1 1 . 2 . . 2 1 1 . . . . . 1 2 4 2 5 . Programmer 38 | . . . . . . . . 1 . . . 4 1 . . 6 1 1 . . . . 2 2 . 1 15 2 2 Behemoth 1 | . . . . . . . . . . . . . . . . . . . . . . . . . . 1 . . . Executioner 1 | . . . . . . . . . . . . . . . . . . . . . . . . . . . 1 . . Best Kill Streak 19 | . 6 3 4 3 . 4 8 5 7 3 6 4 5 2 . 12 4 2 . 2 2 1 2 5 2 4 19 16 1 Combat Bots Only 15 | . 6 3 3 3 . 4 6 5 4 3 3 4 4 2 . 12 3 2 . 2 2 1 2 5 2 4 15 11 1 Max Kills in Single Turn 5 | . 1 1 2 2 . 2 3 3 2 3 2 4 5 1 . 1 1 1 . 1 1 1 1 1 1 1 2 4 1 Gunslinging 1 | . . . . . . 1 . . . . . . . . . . . . . . . . . . . . . . . Exploded 4 | . . . . . . . 3 3 2 3 . 4 4 . . . 1 1 . . . . . . . . 2 . . Melee 1 | . . . . . . . . 1 . . . 1 . . . . 1 . . . . . . . . . . . . Uniques/NPCs Destroyed 1 | . . . . 1 . . . . . . . . . . . . . . . . . . . . . . . . . YI-UF0 (-9/Mines) Combat | -11 -10 -10 -9 -9 -9 -8 -8 -8 -8 -8 -8 -8 -7 -7 -7 -7 -7 -7 -6 -6 -5 -5 -4 -4 -3 -3 -2 -2 -1 -------- Run | Yrd Mat Min Mat Min Exi Min Mat Gar Mat Gar Mat Gar Fac Gar Fac Gar Fac Gar Fac Gar Fac Gar Fac Gar Res Gar Res Tes Acc Hostile Shots Fired 2621 | . 55 31 150 31 . 78 135 89 70 79 38 87 106 12 . 272 76 185 . 74 . 3 14 155 28 232 414 187 20 Missed 842 | . 16 6 47 10 . 27 41 22 17 23 11 21 45 1 . 95 30 65 . 20 . 1 2 44 16 87 121 66 8 Damage Taken 25723 | . 389 234 1445 217 . 681 1205 770 568 687 333 980 1100 68 . 1574 568 1155 . 436 . 27 278 1579 224 2255 6247 2568 135 Core 2425 | . 123 33 208 10 . 104 129 68 102 30 10 94 81 5 . 109 11 44 . 17 . 10 . 60 . 49 856 258 14 Absorbed by Shields 6234 | . . . . . . . 366 185 216 207 68 190 . 74 . 1099 97 579 . . . 11 103 813 . 1015 1070 . 141 Reduced by Siege Mode 421 | . . . . . . . . . . . . . . . . . . . . 39 . . 9 7 . 126 173 61 6 Ignored by Resistances 154 | . . . . . . . 40 17 . . . . . . . . . . . . . . 48 28 . 21 . . . Regen/Repaired (Parts) 2172 | . . . 317 . . . 398 . . . 316 . . . 430 . . . . . . . . . . . 277 . 434 Core Remaining (%) 68 | 100 . 37 . . . 19 . . . . . 21 . . . . . 64 . 98 . 99 . 94 . 96 . 23 99 Volleys Fired 1378 | . 27 20 124 42 . 30 98 51 67 47 39 43 38 17 2 103 32 57 1 57 8 9 7 108 12 133 117 48 41 Largest 2 | . 2 2 2 2 . 2 2 2 2 2 2 2 2 2 1 1 1 1 1 1 1 1 1 1 1 1 2 2 2 Hottest 190 | . 70 70 74 74 . 90 123 123 123 96 96 113 113 113 60 60 60 75 75 75 75 75 75 75 75 75 136 190 190 Shots Fired 1936 | . 54 40 228 60 . 60 175 89 133 85 73 71 66 21 2 106 33 62 1 57 8 9 7 107 12 133 155 46 43 Gun 208 | . 32 . . 24 . 60 . . . . . . . . . . . 3 . 39 . . . 21 . . . 29 . Cannon 1562 | . 22 40 228 36 . . 154 85 132 81 68 59 56 15 2 103 21 49 1 18 8 9 5 79 7 123 122 11 28 Launcher 51 | . . . . . . . 21 4 1 4 . 8 5 . . . . . . . . . . . . . 8 . . Special 115 | . . . . . . . . . . . 5 4 5 6 . 3 12 10 . . . . 2 7 5 10 25 6 15 Kinetic 1493 | . 54 40 228 58 . . 97 38 92 81 68 49 28 12 2 103 21 51 1 57 8 9 5 100 7 123 122 37 2 Thermal 215 | . . . . . . . 57 47 40 . . 10 28 3 . . . 1 . . . . . . . . . 3 26 Explosive 48 | . . . . . . . 21 4 1 4 . 8 5 . . . . . . . . . . . . . 5 . . Electromagnetic 65 | . . . . 2 . 60 . . . . . . . . . . . . . . . . . . . . 3 . . Robot Hit Streak 27 | . 10 5 16 12 . 13 19 13 16 12 22 12 15 7 3 11 14 17 . 22 5 3 6 26 6 14 13 27 13 Robot Miss Streak 5 | . 4 5 3 2 . 4 3 2 4 3 3 4 4 1 . 3 3 1 . 2 1 . 1 3 1 4 4 4 3 Penetration Max 1 | . . . . . . . . . . . . . . . . . . 1 . . . . . 1 . 1 1 1 . Secondary Targets 6 | . 1 . . . . 5 . . . . . . . . . . . . . . . . . . . . . . . Max Gunslinging Chain 1 | . 1 . . . . 1 . . . . . . . . . . . . . . . . . . . . . . . Shots Hit Robots 1373 | . 29 19 150 42 28 50 129 57 84 55 51 71 39 10 1 79 24 49 . 50 6 2 6 83 9 96 100 34 20 Core Hits 695 | . 17 10 53 16 . 32 116 39 42 24 24 29 35 7 . 29 7 17 . 14 2 2 1 32 4 33 73 35 2 Critical Kills 16 | . . . . . . . 1 . 1 . . . 1 . . . . . . . . . . . . . . 13 . Critical Parts Destroyed 30 | . . . . . . . . . . . . 2 . . . . . . . . . . . . . . . 28 . Critical Strikes 126 | . . 1 4 1 . . 9 . 4 3 3 4 2 . . 11 1 7 . . 1 . 2 8 2 12 10 41 . Meltdown 3 | . . . . . . . 1 . 1 . . . 1 . . . . . . . . . . . . . . . . Destroy 41 | . . . . . . . . . . . . . . . . . . . . . . . . . . . . 41 . Blast 80 | . . 1 4 1 . . 8 . 3 3 3 2 1 . . 11 1 7 . . 1 . 2 8 2 12 10 . . Smash 2 | . . . . . . . . . . . . 2 . . . . . . . . . . . . . . . . . Melee Attacks 99 | . . . . . 28 . . 4 1 . 3 29 6 . . 5 1 3 . 10 . . . . . 9 . . . Impact 45 | . . . . . . . . 4 1 . 1 13 3 . . . 1 3 . 10 . . . . . 9 . . . Slashing . | . . . . . . . . . . . . . . . . . . . . . . . . . . . . . . Piercing . | . . . . . . . . . . . . . . . . . . . . . . . . . . . . . . Sneak Attacks 54 | . . . . . 28 . . . . . 1 16 3 . . 5 1 . . . . . . . . . . . . Combat Hostiles 3 | . . . . . . . . . . . . 2 . . . . 1 . . . . . . . . . . . . Follow-up Attacks . | . . . . . . . . . . . . . . . . . . . . . . . . . . . . . . Damage Inflicted 53663 | . 403 348 2864 787 . 958 5322 2323 2613 1991 1457 2760 2073 180 130 4069 1101 2059 . 1844 394 117 322 4617 390 6213 6919 889 520 Guns 3163 | . 169 . . 252 . 796 . . . . . . . . . . . 80 . 961 . . . 536 . . . 369 . Cannons 40110 | . 218 348 2831 505 . . 2556 1600 2433 1369 1440 1116 929 175 130 4059 867 1976 . 883 394 117 322 4081 390 6213 4568 70 520 Explosions 9390 | . . . . . . 133 2741 714 151 622 . 1032 1144 . . . 164 . . . . . . . . . 2239 450 . Melee 682 | . . . . . . . . . . . . 612 . . . . 70 . . . . . . . . . . . . Ramming 318 | . 16 . 33 30 . 29 25 9 29 . 17 . . 5 . 10 . 3 . . . . . . . . 112 . . Kinetic 39130 | . 387 348 2831 729 . . 1710 908 1805 1369 1440 931 522 122 130 4059 867 2056 . 1844 394 117 322 4617 390 6213 4568 395 56 Thermal 4053 | . . . . . . 133 846 692 628 . . 172 407 53 . . 164 . . . . . . . . . . 494 464 Explosive 8050 | . . . . . . . 2741 714 151 622 . 1032 1144 . . . . . . . . . . . . . 1646 . . Electromagnetic 1417 | . . . . 28 . 796 . . . . . . . . . . . . . . . . . . . . 593 . . Impact 695 | . . . . . . . . . . . . 625 . . . . 70 . . . . . . . . . . . . Slashing . | . . . . . . . . . . . . . . . . . . . . . . . . . . . . . . Piercing . | . . . . . . . . . . . . . . . . . . . . . . . . . . . . . . Highest Corruption 29 | . 1 1 . . . 2 . 1 1 1 1 14 1 1 1 8 11 11 . . . . 1 2 . 12 26 29 2 Average Corruption 5 | . 1 1 . . . 1 . 1 1 1 1 10 1 1 1 6 9 11 . . . . 1 1 . 8 15 26 1 Corruption Purged . | . . . . . . . . . . . . . . . . . . . . . . . . . . . . . . Corruption Blocked . | . . . . . . . . . . . . . . . . . . . . . . . . . . . . . . Effects 412 | . 1 2 . . . . . 9 20 8 16 61 . 12 . 66 39 51 . . . . . 18 . 30 46 33 . Message Errors 91 | . . . . . . . . 3 3 . 3 14 . 1 . 18 9 14 . . . . . 4 . 4 12 6 . Matter Fused 99 | . . . . . . . . 4 9 . 3 14 . 3 . 16 10 11 . . . . . 6 . 11 8 4 . Heat Flow Errors 44 | . . . . . . . . 1 1 2 4 6 . 3 . 8 2 7 . . . . . 2 . 2 4 2 . Energy Discharges 37 | . . 1 . . . . . . 2 2 5 5 . 2 . 4 5 1 . . . . . . . 3 5 2 . Parts Rejected 8 | . 1 . . . . . . . . 1 . . . . . . 1 . . . . . . . . . 3 2 . Parts Fused 4 | . . . . . . . . . . . . 1 . 2 . . 1 . . . . . . . . . . . . Data Loss (minor) 48 | . . 1 . . . . . 1 3 1 . 10 . . . 7 6 7 . . . . . 3 . 3 3 3 . Data Loss (major) 27 | . . . . . . . . . 2 1 1 4 . . . 7 2 2 . . . . . 1 . 3 2 2 . Misfires 16 | . . . . . . . . . . . . 2 . 1 . 3 1 5 . . . . . . . 2 1 1 . Alerts 15 | . . . . . . . . . . . . 4 . . . 3 . 4 . . . . . 1 . . 1 2 . Misdirections 10 | . . . . . . . . . . . . . . . . . 2 . . . . . . . . . 5 3 . Weapon Failures 13 | . . . . . . . . . . 1 . 1 . . . . . . . . . . . 1 . 2 2 6 . Overload Shots . | . . . . . . . . . . . . . . . . . . . . . . . . . . . . . . Overflow Damage 2439 | . . 7 3 4 . 27 71 109 29 107 20 320 53 . . 403 50 17 . 96 17 . 72 270 . 371 384 . 9 Projectiles 1893 | . . 7 . 4 . . 44 106 29 57 20 77 . . . 403 30 17 . 96 17 . 72 270 . 371 264 . 9 Explosions 353 | . . . . . . 27 27 3 . 50 . 106 53 . . . . . . . . . . . . . 87 . . Melee 193 | . . . 3 . . . . . . . . 137 . . . . 20 . . . . . . . . . 33 . . Knockbacks 212 | . 6 4 10 6 . 1 14 12 9 7 6 9 4 . 1 23 4 8 . 2 . . . 6 3 37 39 1 . Impact 7 | . . . 1 . . 1 . . . . . 5 . . . . . . . . . . . . . . . . . Kinetic 191 | . 4 3 9 5 . . 12 12 9 7 5 4 4 . 1 21 4 8 . 2 . . . 6 3 36 35 1 . Secondary 14 | . 2 1 . 1 . . 2 . . . 1 . . . . 2 . . . . . . . . . 1 4 . . Self-Inflicted Damage 862 | . . . . . . 51 85 58 . 58 . 160 271 . . . 27 . . . . . . . . . 152 . . Shots 26 | . . . . . . 1 4 4 . 2 . 5 5 . . . 1 . . . . . . . . . 4 . . Rammed 31 | . 5 . 2 4 . 2 2 1 6 . 3 . . 1 . 2 . . . . . . . . . . 3 . . Targets Rammed 39 | . 5 . 3 4 . 2 3 2 8 . 4 . . 1 . 2 . 1 . . . . . . . . 4 . . Kicked 1 | . . . . . . . . . . . . . . . . . . 1 . . . . . . . . . . . Crushed 7 | . . . 1 . . . 1 1 2 . 1 . . . . . . . . . . . . . . . 1 . . Highest Temperature 411 | . 123 20 20 . . 125 336 324 285 261 200 234 255 149 . 228 264 224 34 246 8 8 142 178 16 249 313 411 279 Average Temperature 69 | . 50 11 4 . . 46 82 98 71 67 54 68 82 52 . 58 67 56 16 94 4 3 73 63 8 62 88 117 74 Received Heat Transfer 3879 | . 102 87 591 36 . 315 446 135 193 189 123 126 168 13 . 203 48 185 . 126 . . . 188 . 168 260 165 12 Effects 3 | . . . . . . . . 2 1 . . . . . . . . . . . . . . . . . . . . Energy Bleed 2 | . . . . . . . . 1 1 . . . . . . . . . . . . . . . . . . . . Short Circuit 1 | . . . . . . . . 1 . . . . . . . . . . . . . . . . . . . . . Siege Activations 19 | . . . . . . . . . . . . . . . . . . . . 2 1 . 1 2 . 4 6 1 2 Total Turns 353 | . . . . . . . . . . . . . . . . . . . . 20 17 . 13 25 . 124 121 14 19 Longest Duration 63 | . . . . . . . . . . . . . . . . . . . . 17 17 . 13 20 . 48 63 14 14 Robots Corrupted 2 | . . . . . . 1 . . . . . . . . . . . . . . . . . . . . 1 . . Combat Hostiles 2 | . . . . . . 1 . . . . . . . . . . . . . . . . . . . . 1 . . Parts Fried 7 | . . . . . . 4 . . . . . 2 . . . . . . . . . . . . . . 1 . . Impact Corruptions 14 | . . . 1 1 . . . . . . . 6 . . . 3 1 . . . . . . . . . 2 . . Robots Melted 6 | . . . . . . . 1 . 1 . . . 1 . . . . . . . . . . . . . . 3 . Combat Hostiles 4 | . . . . . . . 1 . 1 . . . 1 . . . . . . . . . . . . . . 1 . Parts Melted 15 | . . . . . . . . . 1 . 1 1 4 . . . . . . . . . . . . . 1 7 . Heat Transferred 4990 | . . . . . . 100 1406 962 888 . . 222 518 74 . . 100 . . . . . . . . . . 387 333 Parts Sabotaged . | . . . . . . . . . . . . . . . . . . . . . . . . . . . . . . Parts Stolen . | . . . . . . . . . . . . . . . . . . . . . . . . . . . . . . Parts Stripped . | . . . . . . . . . . . . . . . . . . . . . . . . . . . . . . Power Chain Reactions 3 | . . . . . . 2 . . . . . . . . . . . . . . . . . . . . 1 . . Alert | -11 -10 -10 -9 -9 -9 -8 -8 -8 -8 -8 -8 -8 -7 -7 -7 -7 -7 -7 -6 -6 -5 -5 -4 -4 -3 -3 -2 -2 -1 ------- Run | Yrd Mat Min Mat Min Exi Min Mat Gar Mat Gar Mat Gar Fac Gar Fac Gar Fac Gar Fac Gar Fac Gar Fac Gar Res Gar Res Tes Acc Peak Influence 1832 | . 277 168 322 307 . 300 912 1233 684 824 401 1362 746 1173 711 1832 1154 1505 790 775 438 398 228 762 441 632 640 544 256 Initial 961 | . . 37 65 112 . . 27 439 600 104 401 111 714 522 615 497 961 598 789 413 406 303 208 5 428 180 355 283 212 Average 484 | . 95 94 203 118 . 159 324 905 216 441 150 688 493 809 667 1192 902 954 780 571 422 331 178 411 402 404 475 322 146 Maximum Alert Level 5 | . 1 . 1 1 . 1 3 4 2 3 2 4 3 4 3 5 4 4 3 3 2 1 1 3 2 2 2 2 1 Low Security (%) 28 | 100 84 100 33 78 . 72 46 . 64 24 72 5 . . . . . . . . . . 17 30 . 12 . . 52 Level 1 20 | . 15 . 66 21 . 27 13 . 22 10 26 19 35 . . . . . . . . 100 82 7 15 28 33 83 47 Level 2 24 | . . . . . . . 33 23 12 54 1 22 54 10 46 11 17 15 4 67 100 . . 53 84 58 66 16 . Level 3 18 | . . . . . . . 5 52 . 11 . 42 9 85 53 25 55 63 95 32 . . . 8 . . . . . Level 4 6 | . . . . . . . . 24 . . . 8 . 3 . 41 26 21 . . . . . . . . . . . Level 5 1 | . . . . . . . . . . . . . . . . 21 . . . . . . . . . . . . . High Security . | . . . . . . . . . . . . . . . . . . . . . . . . . . . . . . Max Security . | . . . . . . . . . . . . . . . . . . . . . . . . . . . . . . Squads Dispatched 56 | . 1 1 4 . . . 7 . 4 . 4 . 7 . 1 . 8 . . . 1 . 3 . 2 . 6 4 3 Investigation 18 | . 1 1 2 . . . 2 . 1 . . . 4 . 1 . 2 . . . 1 . 2 . . . 1 . . Extermination 9 | . . . . . . . . . . . . . 1 . . . 3 . . . . . 1 . . . 2 1 1 Reinforcement 24 | . . . 2 . . . 3 . 3 . 4 . 2 . . . 2 . . . . . . . 1 . 2 3 2 Assault 3 | . . . . . . . 1 . . . . . . . . . 1 . . . . . . . . . 1 . . Garrison 2 | . . . . . . . 1 . . . . . . . . . . . . . . . . . 1 . . . . Intercept . | . . . . . . . . . . . . . . . . . . . . . . . . . . . . . . Searches Triggered . | . . . . . . . . . . . . . . . . . . . . . . . . . . . . . . Construction Impeded 4 | . . . . . . . 1 . . . 2 . . . . . . . . . . . . . . . 1 . . Haulers Reinforced 3 | . . . . . . . . . . . . . 1 . . . . . . . . . . . 1 . . 1 . Active Scanning Responses . | . . . . . . . . . . . . . . . . . . . . . . . . . . . . . . Cargo Convoy Interrupts 1 | . . . . . . . . . . . . . . . . . . . . . . . . . . . 1 . . Alert ID Control Effect 33 | . . . . . . . . . . . . . . . . . . . . . . . . 16 1 3 9 . 4 Stealth | -11 -10 -10 -9 -9 -9 -8 -8 -8 -8 -8 -8 -8 -7 -7 -7 -7 -7 -7 -6 -6 -5 -5 -4 -4 -3 -3 -2 -2 -1 --------- Run | Yrd Mat Min Mat Min Exi Min Mat Gar Mat Gar Mat Gar Fac Gar Fac Gar Fac Gar Fac Gar Fac Gar Fac Gar Res Gar Res Tes Acc Distress Signals 24 | . . . 5 . . . 4 . 4 . 7 . 1 . . . . . . . . . . . . . 3 . . Communications Jammed . | . . . . . . . . . . . . . . . . . . . . . . . . . . . . . . Distress Signals . | . . . . . . . . . . . . . . . . . . . . . . . . . . . . . . Times Spotted 711 | . 21 10 43 9 . 19 66 29 42 25 31 41 32 8 1 39 29 33 . 8 1 5 5 43 7 35 85 22 22 Peak Tracking Total 19 | . 8 3 8 4 . 4 6 6 5 4 6 6 5 3 1 5 4 10 . 5 1 1 3 6 3 7 19 6 7 Tactical Retreats 25 | . . . 1 . . . 2 2 3 . . 2 2 . . 1 . 2 . . . . . 2 . 3 . 1 4 Traps | -11 -10 -10 -9 -9 -9 -8 -8 -8 -8 -8 -8 -8 -7 -7 -7 -7 -7 -7 -6 -6 -5 -5 -4 -4 -3 -3 -2 -2 -1 ------- Run | Yrd Mat Min Mat Min Exi Min Mat Gar Mat Gar Mat Gar Fac Gar Fac Gar Fac Gar Fac Gar Fac Gar Fac Gar Res Gar Res Tes Acc Traps Triggered 52 | . 2 . 1 . . . . 11 1 8 . 6 . 2 . 6 . 3 . . . . 2 6 . 2 2 . . Indirectly . | . . . . . . . . . . . . . . . . . . . . . . . . . . . . . . Trap Hack Attempts 158 | . . . 66 . . . 61 . . . 10 . . . . . 21 . . . . . . . . . . . . Triggered 1 | . . . . . . . 1 . . . . . . . . . . . . . . . . . . . . . . Disarmed 2 | . . . . . . . . . . . 2 . . . . . . . . . . . . . . . . . . Reprogrammed 27 | . . . 5 . . . 8 . . . . . 11 . . . 3 . . . . . . . . . . . . Reused 6 | . . . 1 . . . 4 . . . . . 1 . . . . . . . . . . . . . . . . Traps Extracted . | . . . . . . . . . . . . . . . . . . . . . . . . . . . . . . Installed . | . . . . . . . . . . . . . . . . . . . . . . . . . . . . . . Triggered 6 | . . . 1 . . . 4 . . . . . 1 . . . . . . . . . . . . . . . . Machines | -11 -10 -10 -9 -9 -9 -8 -8 -8 -8 -8 -8 -8 -7 -7 -7 -7 -7 -7 -6 -6 -5 -5 -4 -4 -3 -3 -2 -2 -1 ---------- Run | Yrd Mat Min Mat Min Exi Min Mat Gar Mat Gar Mat Gar Fac Gar Fac Gar Fac Gar Fac Gar Fac Gar Fac Gar Res Gar Res Tes Acc Machines Disabled 66 | . . . 3 . . . 2 7 2 4 1 2 5 1 . 3 9 5 . 3 . 2 . 7 . 2 3 4 1 Max in Single Turn 3 | . . . 1 . . . 1 1 1 1 1 1 2 1 . 1 3 1 . 1 . 1 . 1 . 1 1 1 1 Garrison Access 2 | . . . . . . . . . . . . . . . . . . . . . . . . . . . . 1 1 Garrison Relay 15 | . . . . . . . . 3 . 1 . 1 . 1 . 1 . 3 . . . 1 . 3 . 1 . . . Energy Cycler 1 | . . . . . . . . . . . . . . . . . . . . . . . . . . . . . 1 Machines Repaired . | . . . . . . . . . . . . . . . . . . . . . . . . . . . . . . Machines Dismantled . | . . . . . . . . . . . . . . . . . . . . . . . . . . . . . . Machines Sabotaged . | . . . . . . . . . . . . . . . . . . . . . . . . . . . . . . Overloaded Fab Kills . | . . . . . . . . . . . . . . . . . . . . . . . . . . . . . . Hacking | -11 -10 -10 -9 -9 -9 -8 -8 -8 -8 -8 -8 -8 -7 -7 -7 -7 -7 -7 -6 -6 -5 -5 -4 -4 -3 -3 -2 -2 -1 --------- Run | Yrd Mat Min Mat Min Exi Min Mat Gar Mat Gar Mat Gar Fac Gar Fac Gar Fac Gar Fac Gar Fac Gar Fac Gar Res Gar Res Tes Acc Machines Accessed 104 | . 6 1 10 . 1 . 9 1 12 5 9 3 7 1 2 4 4 3 3 2 1 2 5 2 3 1 3 3 1 Terminals 64 | . 5 1 6 . . . 4 1 8 5 6 3 5 1 . 4 2 3 2 2 . 2 1 2 . 1 . . . Fabricators 3 | . . . . . . . . . . . . . . . . . 1 . . . . . . . . . 1 1 . Repair Stations 10 | . 1 . 2 . . . 2 . 1 . 1 . . . 1 . . . . . . . 1 . . . 1 . . Recycling Units 11 | . . . 1 . . . 1 . 2 . 1 . 1 . . . . . . . . . 2 . 2 . 1 . . Scanalyzers 3 | . . . 1 . . . 1 . . . . . . . . . . . . . . . . . . . . 1 . Garrison Access 12 | . . . . . . . 1 . 1 . 1 . 1 . 1 . 1 . 1 . 1 . 1 . 1 . . 1 1 Total Hacks 306 | . 25 3 32 . 1 . 41 2 38 8 41 8 22 2 5 9 12 5 8 4 3 5 9 4 5 3 5 4 2 Successful 150 | . 10 1 21 . 1 . 28 1 20 4 25 1 6 1 3 2 7 1 1 1 1 2 2 2 2 2 1 2 2 Failed 155 | . 15 2 11 . . . 13 1 17 4 16 7 16 1 2 7 5 4 7 3 2 3 7 2 3 1 4 2 . Catastrophic 39 | . 4 1 2 . . . 3 . 2 1 4 2 3 . 1 2 1 1 . 1 . 2 2 2 2 . 2 1 . Database Lockouts 1 | . . . . . . . . . 1 . . . . . . . . . . . . . . . . . . . . Manual 134 | . 18 3 15 . . . 18 . 18 2 22 1 8 . 2 2 5 1 3 2 2 2 3 2 2 1 1 1 . Terminals 192 | . 22 3 17 . . . 18 2 28 8 28 8 15 2 . 9 6 5 4 4 . 5 1 4 . 3 . . . Fabricators 6 | . . . . . . . . . . . . . . . . . 3 . . . . . . . . . 2 1 . Repair Stations 40 | . 3 . 12 . . . 8 . 3 . 8 . . . 2 . . . . . . . 2 . . . 2 . . Recycling Units 25 | . . . 2 . . . 5 . 5 . 2 . 4 . . . . . . . . . 3 . 3 . 1 . . Scanalyzers 8 | . . . 1 . . . 6 . . . . . . . . . . . . . . . . . . . . 1 . Garrison Access 34 | . . . . . . . 4 . 2 . 3 . 3 . 3 . 3 . 4 . 3 . 3 . 2 . . 2 2 Terminal Hacks 70 | . 7 1 7 . 1 . 8 1 12 3 13 1 4 1 . 2 2 1 . 1 . 2 . 2 . 1 . . . Record 1 | . . . . . 1 . . . . . . . . . . . . . . . . . . . . . . . . Part Schematic 1 | . . 1 . . . . . . . . . . . . . . . . . . . . . . . . . . . Robot Analysis 10 | . 3 . 1 . . . 4 . 1 . 1 . . . . . . . . . . . . . . . . . . Prototype ID Bank 8 | . 3 . . . . . . . 1 . 4 . . . . . . . . . . . . . . . . . . Open Door 4 | . . . . . . . . 1 . 1 . . . . . 1 . . . . . . . 1 . . . . . Branch Access Points 2 | . . . 1 . . . 1 . . . . . . . . . . . . . . . . . . . . . . Emergency Access Points 8 | . . . . . . . . . 1 1 . 1 . . . 1 . 1 . . . 1 . 1 . 1 . . . Terminal Index 1 | . . . . . . . . . . . . . . . . . 1 . . . . . . . . . . . . Repair Station Index 1 | . . . 1 . . . . . . . . . . . . . . . . . . . . . . . . . . Garrison Index 1 | . . . . . . . . . . . 1 . . . . . . . . . . . . . . . . . . Unreport Threat 13 | . . . 1 . . . 2 . 6 . 3 . 1 . . . . . . . . . . . . . . . . Locate Traps 7 | . 1 . 1 . . . 1 . 1 . 1 . 1 . . . 1 . . . . . . . . . . . . Reprogram Traps 2 | . . . . . . . . . . . . . 2 . . . . . . . . . . . . . . . . Registered Components 1 | . . . 1 . . . . . . . . . . . . . . . . . . . . . . . . . . Zone Layout 6 | . . . 1 . . . . . 2 . 3 . . . . . . . . . . . . . . . . . . Garrison Registry 4 | . . . . . . . . . . 1 . . . 1 . . . . . 1 . 1 . . . . . . . Fabricator Hacks 3 | . . . . . . . . . . . . . . . . . 3 . . . . . . . . . . . . Network Status 1 | . . . . . . . . . . . . . . . . . 1 . . . . . . . . . . . . Load Schematic 1 | . . . . . . . . . . . . . . . . . 1 . . . . . . . . . . . . Build 1 | . . . . . . . . . . . . . . . . . 1 . . . . . . . . . . . . Repair Station Hacks 28 | . . . 10 . . . 8 . 1 . 6 . . . 2 . . . . . . . . . . . 1 . . Scan Component 15 | . . . 5 . . . 4 . 1 . 3 . . . 1 . . . . . . . . . . . 1 . . Repair 13 | . . . 5 . . . 4 . . . 3 . . . 1 . . . . . . . . . . . . . . Recycling Unit Hacks 8 | . . . 1 . . . 3 . 2 . 1 . . . . . . . . . . . . . 1 . . . . Process 1 | . . . . . . . 1 . . . . . . . . . . . . . . . . . . . . . . Report Inventory 1 | . . . . . . . 1 . . . . . . . . . . . . . . . . . . . . . . Retrieve Matter 1 | . . . . . . . 1 . . . . . . . . . . . . . . . . . . . . . . Retrieve Components 5 | . . . 1 . . . . . 2 . 1 . . . . . . . . . . . . . 1 . . . . Scanalyzer 5 | . . . . . . . 5 . . . . . . . . . . . . . . . . . . . . . . Insert Component 2 | . . . . . . . 2 . . . . . . . . . . . . . . . . . . . . . . Analyze 3 | . . . . . . . 3 . . . . . . . . . . . . . . . . . . . . . . Garrison Access Hacks 14 | . . . . . . . 1 . 1 . 1 . 1 . 1 . 1 . 1 . 1 . 1 . 1 . . 2 2 Unlock Access 10 | . . . . . . . 1 . 1 . 1 . 1 . 1 . 1 . 1 . 1 . 1 . 1 . . . . Seal Access 2 | . . . . . . . . . . . . . . . . . . . . . . . . . . . . 1 1 Coupler Status 2 | . . . . . . . . . . . . . . . . . . . . . . . . . . . . 1 1 Unauthorized Hacks 22 | . 3 . 3 . . . 3 . 4 1 4 . 1 . . . 1 . . . . . 1 . . 1 . . . Terminals 12 | . 3 . 2 . . . . . 2 1 2 . . . . . 1 . . . . . . . . 1 . . . Track 1 | . 1 . . . . . . . . . . . . . . . . . . . . . . . . . . . . Botnet 6 | . . . 2 . . . . . 1 . 2 . . . . . 1 . . . . . . . . . . . . Disrupt 4 | . 1 . . . . . . . 1 1 . . . . . . . . . . . . . . . 1 . . . Operators 1 | . 1 . . . . . . . . . . . . . . . . . . . . . . . . . . . . Fabricators . | . . . . . . . . . . . . . . . . . . . . . . . . . . . . . . Repair Stations 2 | . . . . . . . . . . . 1 . . . . . . . . . . . 1 . . . . . . Mechanics 2 | . . . . . . . . . . . 1 . . . . . . . . . . . 1 . . . . . . Recycling Units 3 | . . . . . . . 1 . 1 . 1 . . . . . . . . . . . . . . . . . . Reject 3 | . . . . . . . 1 . 1 . 1 . . . . . . . . . . . . . . . . . . Scanalyzers 1 | . . . 1 . . . . . . . . . . . . . . . . . . . . . . . . . . Extract 1 | . . . 1 . . . . . . . . . . . . . . . . . . . . . . . . . . Garrison Access 4 | . . . . . . . 2 . 1 . . . 1 . . . . . . . . . . . . . . . . Restock 1 | . . . . . . . 1 . . . . . . . . . . . . . . . . . . . . . . Reprogram 3 | . . . . . . . 1 . 1 . . . 1 . . . . . . . . . . . . . . . . Data Cores Recovered 2 | . . . . . . . . . 2 . . . . . . . . . . . . . . . . . . . . Used . | . . . . . . . . . . . . . . . . . . . . . . . . . . . . . . Hacking Detections 94 | . 5 1 8 . . . 8 . 10 4 9 3 7 1 2 4 4 3 3 2 1 2 5 1 3 1 3 3 1 Full Trace Events 16 | . 2 1 . . . . 1 . 1 . 1 1 3 . 1 . 2 1 . . 1 . 1 . . . . . . Feedback Events 1 | . . . . . . . . . . . . . 1 . . . . . . . . . . . . . . . . Corruption 1 | . . . . . . . . . . . . . 1 . . . . . . . . . . . . . . . . Feedback Blocked . | . . . . . . . . . . . . . . . . . . . . . . . . . . . . . . Robot Schematics Acquired . | . . . . . . . . . . . . . . . . . . . . . . . . . . . . . . Robots Built . | . . . . . . . . . . . . . . . . . . . . . . . . . . . . . . Authchips . | . . . . . . . . . . . . . . . . . . . . . . . . . . . . . . Time . | . . . . . . . . . . . . . . . . . . . . . . . . . . . . . . Total Robot Build Rating . | . . . . . . . . . . . . . . . . . . . . . . . . . . . . . . Part Schematics Acquired 5 | . . 1 2 . . . 2 . . . . . . . . . . . . . . . . . . . . . . Parts Built 1 | . . . . . . . . . . . . . . . . . 1 . . . . . . . . . . . . Authchips . | . . . . . . . . . . . . . . . . . . . . . . . . . . . . . . Time 25 | . . . . . . . . . . . . . . . . . 25 . . . . . . . . . . . . Total Part Build Rating 1 | . . . . . . . . . . . . . . . . . 1 . . . . . . . . . . . . Parts Repaired 13 | . . . 5 . . . 4 . . . 3 . . . 1 . . . . . . . . . . . . . . Time 466 | . . . 136 . . . 141 . . . 139 . . . 50 . . . . . . . . . . . . . . Parts Recycled . | . . . . . . . . . . . . . . . . . . . . . . . . . . . . . . Recycled Matter 109 | . . . . . . . 109 . . . . . . . . . . . . . . . . . . . . . . Retrieved Matter 169 | . . . . . . . 169 . . . . . . . . . . . . . . . . . . . . . . Retrieved Components 33 | . . . 10 . . . . . 19 . 4 . . . . . . . . . . . . . . . . . . Parts Scanalyzed 2 | . . . . . . . 2 . . . . . . . . . . . . . . . . . . . . . . Part Schematics Acquired 2 | . . . . . . . 2 . . . . . . . . . . . . . . . . . . . . . . Parts Damaged . | . . . . . . . . . . . . . . . . . . . . . . . . . . . . . . Bothacking | -11 -10 -10 -9 -9 -9 -8 -8 -8 -8 -8 -8 -8 -7 -7 -7 -7 -7 -7 -6 -6 -5 -5 -4 -4 -3 -3 -2 -2 -1 ------------ Run | Yrd Mat Min Mat Min Exi Min Mat Gar Mat Gar Mat Gar Fac Gar Fac Gar Fac Gar Fac Gar Fac Gar Fac Gar Res Gar Res Tes Acc Used RIF Installer 12 | . . . . . . . . 1 . 2 . 2 . 1 . 1 . 1 . 1 . 1 . 1 . 1 . . . Coupler Efficiency 1 | . . . . . . . . . . 1 . . . . . . . . . . . . . . . . . . . Code Merge 1 | . . . . . . . . . . . . . . . . . . . . . . 1 . . . . . . . Threat Obfuscator 1 | . . . . . . . . . . . . . . . . . . . . 1 . . . . . . . . . Zone Cloak 1 | . . . . . . . . . . . . . . . . . . . . . . . . . . 1 . . . Watcher Feeds 1 | . . . . . . . . . . . . . . 1 . . . . . . . . . . . . . . . Patrol Navigation 1 | . . . . . . . . . . . . . . . . . . 1 . . . . . . . . . . . Alert ID Control 1 | . . . . . . . . . . . . . . . . . . . . . . . . 1 . . . . . Structural Interface 1 | . . . . . . . . . . 1 . . . . . . . . . . . . . . . . . . . Program Shield 1 | . . . . . . . . . . . . . . . . 1 . . . . . . . . . . . . . Autooverride 1 | . . . . . . . . . . . . 1 . . . . . . . . . . . . . . . . . Autoassimilate 1 | . . . . . . . . . . . . 1 . . . . . . . . . . . . . . . . . Robots Hacked 110 | . . . . . 4 . . . . . 6 4 5 5 . 7 6 11 . . . 3 3 11 4 10 20 3 8 Non-combat 15 | . . . . . 3 . . . . . 1 . 2 . . . 1 . . . . . . . . . 5 . 3 Combat 95 | . . . . . 1 . . . . . 5 4 3 5 . 7 5 11 . . . 3 3 11 4 10 15 3 5 Autooverrided 18 | . . . . . . . . . . . . . . . . 1 . 2 . . . 1 1 4 1 4 3 1 . Autoassimilated 21 | . . . . . . . . . . . . 1 1 3 . 4 1 2 . . . 2 . 3 . 1 2 . 1 Robot Hacks Applied 102 | . . . . . 28 . . . . . 6 3 6 2 . 2 8 8 . . . . 2 4 3 5 16 2 7 parse_system 30 | . . . . . 28 . . . . . . . . . . . . 1 . . . . . . . . 1 . . no_distress 1 | . . . . . . . . . . . 1 . . . . . . . . . . . . . . . . . . deconstruct_bot 1 | . . . . . . . . . . . . . . . . . . . . . . . . . . . 1 . . purge_threat 6 | . . . . . . . . . . . . . 3 . . . 3 . . . . . . . . . . . . block_reporting 1 | . . . . . . . . . . . . . . . . . . . . . . . . . . . 1 . . map_route 3 | . . . . . . . . . . . . . . . . . . . . . . . . . . . 1 . 2 spike_heat 2 | . . . . . . . . . . . 2 . . . . . . . . . . . . . . . . . . overload_power 2 | . . . . . . . . . . . . . . . . . . . . . . . . 2 . . . . . amplify_resonance 5 | . . . . . . . . . . . 1 1 1 . . . . 1 . . . . . . . . 1 . . reboot_system 1 | . . . . . . . . . . . . . . . . . . . . . . . . . . . 1 . . overwrite_iff 14 | . . . . . . . . . . . . . . . . . 2 2 . . . . . 1 . 5 2 2 . formatsys_low 3 | . . . . . . . . . . . . . . . . . 1 . . . . . . . . . 1 . 1 formatsys_high 33 | . . . . . . . . . . . 2 2 2 2 . 2 2 4 . . . . 2 1 3 . 7 . 4 Relay Couplers Released 72 | . . . . . . . 3 17 . 3 . 6 . 4 . 3 . 12 . . . 4 . 13 . 4 . 1 2 Machine Destruction 59 | . . . . . . . . 13 . 3 . 3 . 4 . 3 . 9 . . . 4 . 13 . 4 . 1 2 Programmers 13 | . . . . . . . 3 4 . . . 3 . . . . . 3 . . . . . . . . . . . Attached 27 | . . . . . . . . . . . 1 1 2 1 . 1 3 4 . . . . . 4 . 1 7 . 2 Merged Code Value 94 | . . . . . . . . . . . . . . . . . . . . . . 41 . 17 . 20 6 10 . Fabnet Peak Effective % . | . . . . . . . . . . . . . . . . . . . . . . . . . . . . . . Robots Rewired 25 | . . . . . . . . . . . . 9 . . . 9 . . . . . . . 5 . 2 . . . Allies Hacked . | . . . . . . . . . . . . . . . . . . . . . . . . . . . . . . Hacks Repelled . | . . . . . . . . . . . . . . . . . . . . . . . . . . . . . . Allies | -11 -10 -10 -9 -9 -9 -8 -8 -8 -8 -8 -8 -8 -7 -7 -7 -7 -7 -7 -6 -6 -5 -5 -4 -4 -3 -3 -2 -2 -1 -------- Run | Yrd Mat Min Mat Min Exi Min Mat Gar Mat Gar Mat Gar Fac Gar Fac Gar Fac Gar Fac Gar Fac Gar Fac Gar Res Gar Res Tes Acc Total Allies 125 | . . 1 . . . . 2 1 2 2 2 12 4 5 . 16 6 12 . . . 3 3 14 4 12 15 3 6 Largest Group 9 | . . 1 . . . . 2 2 2 2 2 9 3 4 3 9 8 2 2 2 1 2 2 6 3 2 3 2 3 Highest-Rated Group 462 | . . 31 . . . . 30 31 48 48 45 117 61 117 117 261 153 175 170 170 71 61 94 462 161 105 183 247 124 Highest-Rated Ally 178 | . . 31 . . . . 15 31 24 25 29 24 29 85 85 85 43 95 90 90 71 49 47 116 112 64 178 178 64 Total Orders 26 | . . . . . . . . . . . . . . 9 . 1 3 . . . . . . 4 1 . 3 1 4 STAY 10 | . . . . . . . . . . . . . . 4 . . 2 . . . . . . 1 . . 1 1 1 ROAM 4 | . . . . . . . . . . . . . . 1 . 1 . . . . . . . 1 1 . . . . FOLLOW 9 | . . . . . . . . . . . . . . 4 . . 1 . . . . . . 2 . . 1 . 1 AID 3 | . . . . . . . . . . . . . . . . . . . . . . . . . . . 1 . 2 Ally Attacks 658 | . . 9 . . . . 1 11 7 19 18 68 5 19 13 77 78 55 . 41 9 2 4 74 33 27 45 18 25 Total Damage 16991 | . . 123 . . . . 39 162 238 515 221 912 53 358 488 1537 1705 1583 . 1051 148 34 63 3279 601 671 1690 905 615 Kills 127 | . . 1 . . . . 1 . 2 3 5 19 1 2 4 10 20 11 . 8 . 1 . 21 2 3 9 . 4 Allies Corrupted 5 | . . . . . . . . . . . . . . . . . . . . . . . . . . . 5 . . Allies Melted 1 | . . . . . . . . . . . . . . . . . . . . . . . . . . 1 . . . Intel | -11 -10 -10 -9 -9 -9 -8 -8 -8 -8 -8 -8 -8 -7 -7 -7 -7 -7 -7 -6 -6 -5 -5 -4 -4 -3 -3 -2 -2 -1 ------- Run | Yrd Mat Min Mat Min Exi Min Mat Gar Mat Gar Mat Gar Fac Gar Fac Gar Fac Gar Fac Gar Fac Gar Fac Gar Res Gar Res Tes Acc Robot Analysis Total 10 | . 3 . 1 . . . 4 . 1 . 1 . . . . . . . . . . . . . . . . . . Derelict Logs Recovered 3 | . . 2 . 1 . . . . . . . . . . . . . . . . . . . . . . . . . Drone Launches . | . . . . . . . . . . . . . . . . . . . . . . . . . . . . . . Drone Recoveries . | . . . . . . . . . . . . . . . . . . . . . . . . . . . . . . Exploration | -11 -10 -10 -9 -9 -9 -8 -8 -8 -8 -8 -8 -8 -7 -7 -7 -7 -7 -7 -6 -6 -5 -5 -4 -4 -3 -3 -2 -2 -1 ------------- Run | Yrd Mat Min Mat Min Exi Min Mat Gar Mat Gar Mat Gar Fac Gar Fac Gar Fac Gar Fac Gar Fac Gar Fac Gar Res Gar Res Tes Acc Turns Passed 34891 | 9 655 751 2314 1125 414 904 3242 1584 2831 1616 1589 1885 786 1398 249 2302 1356 1530 419 643 148 375 478 1962 473 1244 1270 492 847 Spaces Moved 14370 | 5 335 417 877 614 230 492 1099 549 1030 566 510 679 376 638 75 816 552 680 105 284 43 207 272 975 124 508 501 302 509 Core 2 | . . . . . . . . . . . . . . . . . . . . . . . . . . . 2 . . Treads 13110 | 3 335 417 730 614 230 442 1032 549 1030 566 510 679 376 638 75 816 552 596 105 284 43 207 272 975 124 508 379 23 . Legs 86 | 2 . . . . . . . . . . . . . . . . . 84 . . . . . . . . . . . Wheels 1172 | . . . 147 . . 50 67 . . . . . . . . . . . . . . . . . . . 120 279 509 Hover . | . . . . . . . . . . . . . . . . . . . . . . . . . . . . . . Flight . | . . . . . . . . . . . . . . . . . . . . . . . . . . . . . . Fastest Speed 80 | 120 160 160 155 160 160 155 155 240 235 243 163 160 165 165 242 156 156 150 150 150 160 160 156 156 160 160 80 80 110 Average Speed 190 | 144 160 160 160 160 160 159 217 240 238 243 239 235 165 206 242 230 213 185 150 156 160 160 158 159 160 160 159 102 134 Slowest Speed 330 | 160 160 160 320 160 160 240 240 240 243 243 243 243 165 245 242 242 236 330 150 160 160 160 160 160 160 160 300 180 170 Overloaded Moves . | . . . . . . . . . . . . . . . . . . . . . . . . . . . . . . Propulsion Burnouts . | . . . . . . . . . . . . . . . . . . . . . . . . . . . . . . Robots Hopped . | . . . . . . . . . . . . . . . . . . . . . . . . . . . . . . Cave-ins Triggered . | . . . . . . . . . . . . . . . . . . . . . . . . . . . . . . Exploration Rate (%) 51 | 2 48 87 59 98 64 89 77 65 86 75 55 91 15 75 4 93 19 95 4 41 3 29 10 96 5 57 32 40 24 Regions Visited 29 Branch Regions 5 Pre-discovered Areas 2 | . . 1 . . 1 . . . . . . . . . . . . . . . . . . . . . . . . Known Exits Taken 11 | . . . 1 . . . 1 . 1 . 1 . 1 . 1 . 1 . 1 . 1 . 1 . 1 . . . . Unknown Exits Taken 8 | 1 1 1 . 1 1 1 . . . . . . . . . . . . . . . . . . . . 1 1 . Scrap Searched 4 | . . 1 . 2 . 1 . . . . . . . . . . . . . . . . . . . . . . . Spaces Dug 108 | . . . . . . . 4 . 1 20 1 33 2 6 1 2 . . 1 5 . 6 . . . 6 7 . 13 Terrain Destroyed 782 | . . . . . . 10 140 3 56 28 13 73 68 6 1 32 32 13 1 33 1 7 1 31 2 47 131 27 26 Melee 9 | . . . . . . . . . 1 . 1 . 2 . . . . . . 5 . . . . . . . . . Projectile 289 | . . . . . . . 6 . 38 . 12 . 6 6 1 32 6 13 1 27 1 7 1 31 2 47 33 3 16 AOE 479 | . . . . . . 10 134 3 17 28 . 73 60 . . . 26 . . . . . . . . . 98 20 10 Terrain Rammed . | . . . . . . . . . . . . . . . . . . . . . . . . . . . . . . Walls Destroyed . | . . . . . . . . . . . . . . . . . . . . . . . . . . . . . . Machines Disabled . | . . . . . . . . . . . . . . . . . . . . . . . . . . . . . . Actions | -11 -10 -10 -9 -9 -9 -8 -8 -8 -8 -8 -8 -8 -7 -7 -7 -7 -7 -7 -6 -6 -5 -5 -4 -4 -3 -3 -2 -2 -1 --------- Run | Yrd Mat Min Mat Min Exi Min Mat Gar Mat Gar Mat Gar Fac Gar Fac Gar Fac Gar Fac Gar Fac Gar Fac Gar Res Gar Res Tes Acc Total 19805 | 6 406 461 1557 692 263 546 1774 710 1258 724 795 858 467 701 140 1085 695 878 365 402 110 238 310 1258 386 793 861 431 635 Wait 2613 | . 5 19 414 18 . 9 423 59 107 79 198 31 16 10 63 57 49 37 257 26 56 14 16 82 239 82 124 61 62 Move 14344 | 4 334 416 876 613 229 491 1098 548 1029 565 509 678 375 637 74 815 552 679 104 283 43 206 272 974 124 507 500 301 508 Hop . | . . . . . . . . . . . . . . . . . . . . . . . . . . . . . . Pick Up 167 | . 15 3 19 5 1 2 18 5 8 2 4 9 6 6 . 7 5 12 . 3 1 2 1 12 . 11 8 1 1 Fast Attach 193 | . 5 . 16 1 . 1 9 2 5 1 3 8 2 5 1 10 6 22 1 6 . 3 3 17 3 8 32 14 9 Attach 102 | . . 1 8 . . 4 4 2 . 1 2 2 4 . . 5 7 14 1 5 1 . 2 11 3 8 17 . . Detach 82 | . 1 . 7 . . 1 1 . . . . . 1 3 . 5 9 18 1 4 . 1 2 8 2 6 10 1 1 Swap 210 | 2 3 1 7 6 3 5 35 14 15 10 16 26 14 9 . 2 5 2 . . . . 4 3 . 3 14 3 8 Drop 259 | . 11 1 17 3 2 1 24 3 18 7 6 14 5 11 . 11 6 25 . 8 1 3 3 25 2 12 33 2 5 Fire 1378 | . 27 20 124 42 . 30 98 51 67 47 39 43 38 17 2 103 32 57 1 57 8 9 7 108 12 133 117 48 41 Melee 99 | . . . . . 28 . . 4 1 . 3 29 6 . . 5 1 3 . 10 . . . . . 9 . . . Ram . | . . . . . . . . . . . . . . . . . . . . . . . . . . . . . . Kick 1 | . . . . . . . . . . . . . . . . . . 1 . . . . . . . . . . . Crush 38 | . 5 . 3 4 . 2 3 2 8 . 4 . . 1 . 2 . . . . . . . . . . 4 . . Escape Stasis 57 | . . . . . . . . 20 . 12 . 14 . . . 4 . 7 . . . . . . . . . . . Rewire 104 | . . . . . . . . . . . 1 4 . 2 . 59 2 1 . . . . . 18 1 14 2 . . Trap 158 | . . . 66 . . . 61 . . . 10 . . . . . 21 . . . . . . . . . . . . Miscellaneous . | . . . . . . . . . . . . . . . . . . . . . . . . . . . . . . Route ------- -11/Scrapyard -10/Materials (discovered 2 exits: *Mat / *Min) -10/Mines (discovered 2 exits: *Mat x2) -9/Materials (discovered 3 exits: *Mat x2 / *Min) -9/Mines (discovered 4 exits: *Mat x2 / *Exi / [*Zio]) -9/Exiles -8/Mines (discovered 2 exits: *Mat x2) -8/Materials (discovered 4 exits: *Fac x3 / Gar) -8/Garrison (discovered 2 exits: *Mat x2) -8/Materials (discovered 3 exits: *Fac x2 / Gar) -8/Garrison (discovered 4 exits: *Fac x3 / *Mat) -8/Materials (discovered 2 exits: *Fac / Gar) -8/Garrison (discovered 3 exits: *Fac x3) -7/Factory -7/Garrison (discovered 4 exits: *Fac x3 / *Fac) -7/Factory -7/Garrison (discovered 4 exits: *Fac x3 / *Fac) -7/Factory (discovered 3 exits: *Fac / [*Low] / Gar) -7/Garrison (discovered 3 exits: *Fac x3) -6/Factory -6/Garrison (discovered 3 exits: *Fac x3) -5/Factory -5/Garrison (discovered 3 exits: *Fac x3) -4/Factory -4/Garrison (discovered 3 exits: *Res x3) -3/Research -3/Garrison (discovered 2 exits: *Res x2) -2/Research -2/Testing -1/Access To Epsilon Eridani History --------- Turn | Location | Event 1 | -11/Scrapyard | Discovered new exit (range 3) 10 | -11/Scrapyard | Entered Materials 314 | -10/Materials | Build established: Mutant 465 | -10/Materials | Discovered new exit (range 16) 572 | -10/Materials | Discovered new exit (range 14) 665 | -10/Materials | Entered Mines 672 | -10/Mines | Core integrity fell below 50% 686 | -10/Mines | Met a Derelict bent on vengeance 780 | -10/Mines | Learned location of 1 exit from Materials 830 | -10/Mines | Received a Mining Laser from a helpful Derelict 1013 | -10/Mines | Learned location of Mines (-9) 1276 | -10/Mines | Discovered new exit (range 14) 1393 | -10/Mines | Discovered new exit (range 5) 1416 | -10/Mines | Entered Materials 1416 | -9/Materials | Evolved 2 slots: Propulsion x1, Utility x1 1417 | -9/Materials | Identified exit to Mines 1736 | -9/Materials | Repaired Lgt. Treads 1878 | -9/Materials | Build established: Scavenger-Mutant 2597 | -9/Materials | Build established: Mutant 2802 | -9/Materials | Discovered new exit (range 8) 3064 | -9/Materials | Core integrity fell below 50% 3327 | -9/Materials | Discovered new exit (range 10) 3449 | -9/Materials | Repaired Imp. Treads 3477 | -9/Materials | Repaired Lgt. Cannon 3505 | -9/Materials | Repaired Lgt. Treads 3532 | -9/Materials | Repaired Lgt. Armor Plating 3730 | -9/Materials | Entered Mines 3830 | -9/Mines | Build established: Scavenger-Mutant 3982 | -9/Mines | Learned Materials stockpile data 4029 | -9/Mines | Discovered new exit (range 9) 4149 | -9/Mines | Discovered new exit (range 9) 4310 | -9/Mines | YI-UF0 nonchalantly dropped a Grenade Launcher on the ground 4378 | -9/Mines | Murdered YI-UF0 4378 | -9/Mines | Destroyed YI-UF0 4387 | -9/Mines | Found Corrupted Prototype Storage 4391 | -9/Mines | Found Corrupted Prototype Launcher 4600 | -9/Mines | Deemed a non-threat by the Exiles lab entrance 4600 | -9/Mines | Discovered new exit (range 5) 4726 | -9/Mines | A Derelict revealed a hidden shortcut to a safe place 4855 | -9/Mines | Entered Exiles 4897 | -9/Exiles | Met 8R-AWN 4926 | -9/Exiles | Met EX-HEX 5027 | -9/Exiles | Met EX-DEC 5090 | -9/Exiles | Met EX-BIN 5189 | -9/Exiles | Learned location of Zion (-7) 5249 | -9/Exiles | Discovered new exit (range 12) 5269 | -9/Exiles | Entered Mines 5446 | -8/Mines | Discovered new exit (range 9) 5655 | -8/Mines | Discovered new exit (range 11) 6086 | -8/Mines | Core integrity fell below 20% 6108 | -8/Mines | Lost 3 parts (1n1u1w) 6153 | -8/Mines | Identified YI-UF0's Bottomless Matter Pit 6154 | -8/Mines | Identified YI-UF0's Doublenader 6173 | -8/Mines | Entered Materials 6173 | -8/Materials | Evolved 2 slots: Utility x2 6339 | -8/Materials | Repaired Imp. Treads 6387 | -8/Materials | Build established: Mutant 6834 | -8/Materials | Repaired Cld. Ion Engine 6861 | -8/Materials | Repaired Lgt. Treads 6894 | -8/Materials | Repaired Imp. Light Cannon 6950 | -8/Materials | Discovered new exit (range 7) 8366 | -8/Materials | Discovered new exit (range 12) 8573 | -8/Materials | First assault squad dispatched 8984 | -8/Materials | Discovered new exit (range 14) 9047 | -8/Materials | Build established: Hacker-Mutant 9375 | -8/Materials | Identified exit to Garrison 9408 | -8/Materials | Garrison activated, responded to threat 9415 | -8/Materials | Entered Garrison 9415 | -8/Garrison | Accompanied by 2 allies 9654 | -8/Garrison | Triggered checkpoint 9786 | -8/Garrison | Garrison Relay disabled 9817 | -8/Garrison | Rescued a captive Derelict 9926 | -8/Garrison | Triggered checkpoint 9963 | -8/Garrison | Build established: Mutant 10028 | -8/Garrison | Triggered checkpoint 10158 | -8/Garrison | Triggered checkpoint 10161 | -8/Garrison | Spotted B-75 Beast 10268 | -8/Garrison | Discovered new exit (range 11) 10344 | -8/Garrison | Triggered checkpoint 10348 | -8/Garrison | Garrison Relay disabled 10633 | -8/Garrison | Discovered new exit (range 11) 10755 | -8/Garrison | Installed Relay Interface Framework 10900 | -8/Garrison | Triggered checkpoint 10915 | -8/Garrison | Garrison Relay disabled 10999 | -8/Garrison | Entered Materials 11215 | -8/Materials | Build established: Bothacker-Mutant 12004 | -8/Materials | Discovered new exit (range 13) 12434 | -8/Materials | Central database locked down 12566 | -8/Materials | Discovered new exit (range 15) 13368 | -8/Materials | Core integrity fell below 50% 13517 | -8/Materials | Identified exit to Garrison 13830 | -8/Materials | Entered Garrison 13830 | -8/Garrison | Accompanied by 2 allies 13929 | -8/Garrison | Expanded RIF knowledge: Coupler Efficiency 13954 | -8/Garrison | Triggered checkpoint 14128 | -8/Garrison | Rescued a captive Derelict 14128 | -8/Garrison | Rescued a captive Derelict 14215 | -8/Garrison | Triggered checkpoint 14281 | -8/Garrison | Triggered checkpoint 14508 | -8/Garrison | Triggered checkpoint 14572 | -8/Garrison | Garrison Relay disabled 14744 | -8/Garrison | Discovered new exit (range 12) 14831 | -8/Garrison | Expanded RIF knowledge: Structural Interface 15008 | -8/Garrison | Triggered checkpoint 15104 | -8/Garrison | Discovered new exit (range 10) 15121 | -8/Garrison | Discovered new exit (range 45) 15121 | -8/Garrison | Discovered new exit (range 57) 15121 | -8/Garrison | Discovered new exit (range 16) 15121 | -8/Garrison | Discovered new exit (range 60) 15403 | -8/Garrison | Triggered checkpoint 15446 | -8/Garrison | Entered Materials 15679 | -8/Materials | Repaired Adv. Assault Cannon 15725 | -8/Materials | Repaired Adv. Assault Cannon 15777 | -8/Materials | Repaired Cld. Ion Engine 16552 | -8/Materials | Discovered new exit (range 14) 16998 | -8/Materials | Identified exit to Garrison 17035 | -8/Materials | Entered Garrison 17042 | -8/Garrison | Triggered checkpoint 17514 | -8/Garrison | Triggered checkpoint 17531 | -8/Garrison | Garrison Relay disabled 17709 | -8/Garrison | Triggered checkpoint 17712 | -8/Garrison | Triggered checkpoint 17765 | -8/Garrison | Lost 7 allies 17815 | -8/Garrison | Expanded RIF knowledge: Autoassimilate 17854 | -8/Garrison | Triggered checkpoint 17987 | -8/Garrison | Discovered new exit (range 4) 18003 | -8/Garrison | Expanded RIF knowledge: Autooverride 18035 | -8/Garrison | Lost 3 allies 18117 | -8/Garrison | Build established: Botlord-Mutant 18158 | -8/Garrison | Triggered checkpoint 18179 | -8/Garrison | System corruption reached 10% 18324 | -8/Garrison | Discovered new exit (range 14) 18440 | -8/Garrison | Triggered checkpoint 18536 | -8/Garrison | Triggered checkpoint 18618 | -8/Garrison | Triggered checkpoint 18754 | -8/Garrison | Triggered checkpoint 18862 | -8/Garrison | Discovered new exit (range 9) 18920 | -8/Garrison | Entered Factory 18920 | -7/Factory | Evolved 2 slots: Propulsion x1, Utility x1 19527 | -7/Factory | Build established: Bothacker-Mutant 19691 | -7/Factory | Identified exit to Garrison 19706 | -7/Factory | Entered Garrison 19706 | -7/Garrison | Accompanied by 1 ally 19814 | -7/Garrison | Warlord forces raided the area 19827 | -7/Garrison | Triggered checkpoint 19842 | -7/Garrison | Triggered checkpoint 19854 | -7/Garrison | Garrison Relay disabled 19891 | -7/Garrison | Triggered checkpoint 19898 | -7/Garrison | Triggered checkpoint 19934 | -7/Garrison | Triggered checkpoint 19952 | -7/Garrison | Triggered checkpoint 20056 | -7/Garrison | Discovered new exit (range 6) 20070 | -7/Garrison | Triggered checkpoint 20152 | -7/Garrison | Build established: Botlord-Mutant 20167 | -7/Garrison | Spotted B-75 Beast 20197 | -7/Garrison | Assimilated Beast 4a with formatsys_high 20291 | -7/Garrison | Discovered new exit (range 13) 20461 | -7/Garrison | Build established: Bothacker-Mutant 20693 | -7/Garrison | Discovered new exit (range 7) 20784 | -7/Garrison | Expanded RIF knowledge: Watcher Feeds 20855 | -7/Garrison | Discovered new exit (range 62) 20855 | -7/Garrison | Discovered new exit (range 27) 20855 | -7/Garrison | Discovered new exit (range 36) 20855 | -7/Garrison | Discovered new exit (range 79) 21104 | -7/Garrison | Entered Factory 21104 | -7/Factory | Accompanied by 3 allies 21291 | -7/Factory | Repaired Imp. Heavy Armor Plating 21343 | -7/Factory | Identified exit to Garrison 21353 | -7/Factory | Entered Garrison 21353 | -7/Garrison | Accompanied by 3 allies 21454 | -7/Garrison | Triggered checkpoint 21938 | -7/Garrison | Triggered checkpoint 21939 | -7/Garrison | Build established: Botlord-Mutant 21976 | -7/Garrison | Triggered checkpoint 22004 | -7/Garrison | Triggered checkpoint 22052 | -7/Garrison | Destroyed 12 combat bots 22098 | -7/Garrison | Discovered new exit (range 11) 22142 | -7/Garrison | Expanded RIF knowledge: Program Shield 22190 | -7/Garrison | Triggered checkpoint 22300 | -7/Garrison | Garrison Relay disabled 22736 | -7/Garrison | Triggered checkpoint 22792 | -7/Garrison | Discovered new exit (range 3) 22832 | -7/Garrison | Discovered new exit (range 11) 22960 | -7/Garrison | Triggered checkpoint 23244 | -7/Garrison | Triggered checkpoint 23267 | -7/Garrison | Spotted B-75 Beast 23387 | -7/Garrison | Discovered new exit (range 11) 23469 | -7/Garrison | Allies destroyed B-75 Beast 23500 | -7/Garrison | Lost 5 allies 23536 | -7/Garrison | Triggered checkpoint 23655 | -7/Garrison | Entered Factory 23655 | -7/Factory | Accompanied by 8 allies 23928 | -7/Factory | Fabricated Huge Storage Unit (x1) 24006 | -7/Factory | Discovered new exit (range 15) 24174 | -7/Factory | System corruption reached 10% 24201 | -7/Factory | Lost 4 allies 24529 | -7/Factory | Discovered new exit (range 4) 24855 | -7/Factory | First assault squad dispatched 25011 | -7/Factory | Identified exit to Garrison 25011 | -7/Factory | Entered Garrison 25202 | -7/Garrison | Triggered checkpoint 25305 | -7/Garrison | Rescued a captive Derelict 25334 | -7/Garrison | Garrison Relay disabled 25470 | -7/Garrison | Triggered checkpoint 25500 | -7/Garrison | Triggered checkpoint 25553 | -7/Garrison | Lost 6 allies 25867 | -7/Garrison | Discovered new exit (range 11) 26058 | -7/Garrison | Triggered checkpoint 26108 | -7/Garrison | Triggered checkpoint 26109 | -7/Garrison | Found embedded Infiltrators 26129 | -7/Garrison | Garrison Relay disabled 26179 | -7/Garrison | Discovered new exit (range 10) 26259 | -7/Garrison | Triggered checkpoint 26409 | -7/Garrison | Expanded RIF knowledge: Patrol Navigation 26422 | -7/Garrison | Discovered new exit (range 10) 26430 | -7/Garrison | Triggered checkpoint 26456 | -7/Garrison | Garrison Relay disabled 26541 | -7/Garrison | Entered Factory 26541 | -6/Factory | Accompanied by 2 allies 26541 | -6/Factory | Evolved 2 slots: Power x1, Utility x1 26687 | -6/Factory | Identified exit to Garrison 26960 | -6/Factory | Entered Garrison 26960 | -6/Garrison | Accompanied by 2 allies 27061 | -6/Garrison | Discovered new exit (range 79) 27061 | -6/Garrison | Discovered new exit (range 100) 27061 | -6/Garrison | Discovered new exit (range 54) 27293 | -6/Garrison | Triggered checkpoint 27332 | -6/Garrison | Triggered checkpoint 27367 | -6/Garrison | Triggered checkpoint 27555 | -6/Garrison | Expanded RIF knowledge: Threat Obfuscation 27603 | -6/Garrison | Entered Factory 27603 | -5/Factory | Accompanied by 1 ally 27603 | -5/Factory | Evolved 2 slots: Propulsion x1, Utility x1 27702 | -5/Factory | Identified exit to Garrison 27751 | -5/Factory | Entered Garrison 27822 | -5/Garrison | Triggered checkpoint 27922 | -5/Garrison | Discovered new exit (range 80) 27922 | -5/Garrison | Discovered new exit (range 35) 27922 | -5/Garrison | Discovered new exit (range 63) 27963 | -5/Garrison | Triggered checkpoint 28040 | -5/Garrison | Expanded RIF knowledge: Code Merge 28068 | -5/Garrison | Garrison Relay disabled 28126 | -5/Garrison | Entered Factory 28126 | -4/Factory | Accompanied by 1 ally 28126 | -4/Factory | Evolved 2 slots: Propulsion x1, Utility x1 28604 | -4/Factory | Identified exit to Garrison 28604 | -4/Factory | Entered Garrison 28604 | -4/Garrison | Accompanied by 2 allies 28628 | -4/Garrison | Expanded RIF knowledge: Alert ID Control 28660 | -4/Garrison | Triggered checkpoint 28772 | -4/Garrison | Garrison Relay disabled 28794 | -4/Garrison | Garrison Relay disabled 29068 | -4/Garrison | Lost 3 allies 29187 | -4/Garrison | Spotted B-86 Titan 29194 | -4/Garrison | Assimilated Titan 7a with formatsys_high 29204 | -4/Garrison | Triggered checkpoint 29213 | -4/Garrison | Triggered checkpoint 29230 | -4/Garrison | Triggered checkpoint 29250 | -4/Garrison | Triggered checkpoint 29512 | -4/Garrison | Discovered new exit (range 12) 29592 | -4/Garrison | Triggered checkpoint 29792 | -4/Garrison | Spotted B-75 Beast 29800 | -4/Garrison | Rewired B-86 Titan 29806 | -4/Garrison | Rewired B-86 Titan 29850 | -4/Garrison | Allies destroyed B-75 Beast 30128 | -4/Garrison | Triggered checkpoint 30173 | -4/Garrison | Discovered new exit (range 2) 30318 | -4/Garrison | Discovered new exit (range 10) 30426 | -4/Garrison | Garrison Relay disabled 30566 | -4/Garrison | Entered Research 30566 | -3/Research | Accompanied by 2 allies 30566 | -3/Research | Evolved 2 slots: Power x1, Utility x1 30660 | -3/Research | Garrison activated, responded to threat 30783 | -3/Research | Lost 3 allies 30800 | -3/Research | Identified exit to Garrison 31039 | -3/Research | Entered Garrison 31162 | -3/Garrison | Triggered checkpoint 31291 | -3/Garrison | Expanded RIF knowledge: Zone Cloak 31355 | -3/Garrison | Triggered checkpoint 31412 | -3/Garrison | Found Gamma Bomb Array 31414 | -3/Garrison | Found Gamma Bomb Array 31502 | -3/Garrison | Garrison Relay disabled 31581 | -3/Garrison | Discovered new exit (range 12) 31662 | -3/Garrison | Lost 3 allies 31761 | -3/Garrison | Spotted B-86 Titan 31893 | -3/Garrison | Destroyed B-86 Titan 31914 | -3/Garrison | Triggered checkpoint 31926 | -3/Garrison | Triggered checkpoint 31966 | -3/Garrison | Lost 4 allies 32058 | -3/Garrison | Triggered checkpoint 32068 | -3/Garrison | System corruption reached 10% 32269 | -3/Garrison | Discovered new exit (range 10) 32272 | -3/Garrison | Triggered checkpoint 32283 | -3/Garrison | Entered Research 32283 | -2/Research | Evolved 2 slots: Propulsion x2 32524 | -2/Research | Destroyed 7 combat bots 32661 | -2/Research | Lost 3 parts (2n1w) 32679 | -2/Research | System corruption reached 10% 33095 | -2/Research | P-80 Master assimilated allied Smith 9a 33284 | -2/Research | Cargo convoy interrupted 33284 | -2/Research | Spotted Executioner 33339 | -2/Research | Lost 4 allies 33356 | -2/Research | Core integrity fell below 50% 33357 | -2/Research | Destroyed Executioner 33385 | -2/Research | Destroyed 15 combat bots 33388 | -2/Research | Lost 17 parts (3p6n3u5w) 33420 | -2/Research | Discovered new exit (range 34) 33533 | -2/Research | First assault squad dispatched 33553 | -2/Research | Entered Testing 33553 | -2/Testing | Accompanied by 1 ally 33768 | -2/Testing | Lost 6 parts (1p3n2u) 33852 | -2/Testing | Found Prototype Ballistic Gun 33852 | -2/Testing | Identified Hyp. Multirail 33936 | -2/Testing | Destroyed 11 combat bots 34028 | -2/Testing | Discovered new exit (range 10) 34034 | -2/Testing | Spotted PY-JAJA1BEJNT 34045 | -2/Testing | Entered Access 34045 | -1/Access | Evolved 2 slots: Utility x2 34786 | -1/Access | Spotted B-99 Colossus 34798 | -1/Access | Energy Cycler disabled 34852 | -1/Access | Discovered new exit (range 5) 34892 | *** | Escaped! Last Messages --------------- 34852_ EXIT=FOUND 34853_ >> Watcher Feeds: Feed link from W-44 Eye lost. 34866_ >> Watcher Feeds: Established visual feed link with W-44 Eye. 34869_ Destroyed Unknown Storage. 34869_ Slug penetrates P-80 Master. 34869_ Warden 10b destroyed. 34870_ P-80 Master destroyed. 34871_ >> Watcher Feeds: Feed link from W-44 Eye lost. 34872_ Activated siege mode. 34875_ >> Watcher Feeds: Established visual feed link with W-44 Eye. 34876_ >> Watcher Feeds: Feed link from W-44 Eye lost. 34876_ P-80 Master destroyed. 34881_ Destroyed Adv. Heat Sink. 34884_ >> Watcher Feeds: Established visual feed link with W-44 Eye. 34884_ Destroyed Gamma Rifle. 34885_ P-80 Master destroyed. 34890_ Ended siege mode. Map ----- +----------------------------------------------------+ | ??????????????????????????????????# " ## # | | ??????????????????????????????????# " ## # | | ??????????????????????????????????# " ?# # | | ??????????????????????????????????# "### # | | ??????????????????????????????????# " | | ??????????????????????????????????# "##### | | ??????????????????????????????????# "#???? | | ??????????????????????????????????# ##???? | | ??????????????????????????????????# ##???? | | ?????????????????????????????##???##########;##??? | | ??????????????###############[###############;##?? | | ????????????? |%= #?? | | ????????????? =![ #?? | | ????????????????????# *%""############## #?? | | ????????????????????# =!=""#????????????# #?? | | ????????????????????# =%""#????????????# #?? | | ????????????????????# T#????????????# #?? | | ????????????????????# = ""#??????#######w ### | | ????????????????????# %[ ""#??????+ | | ???????????????????## ! ""##?????####### | | ???????????????????# #??????######+#### | | ???????????????????## ##??????# | | ????????????????????# s #???????# | | ????????????????????# s #???????# | | ????????????????????# #???????# | | ????????????????????# @" #???????# !! | | ????????????????????# "" #???????# !! | | ????????????????????# #???????# | | ????????????????????# #???????# | | ????????????????????# #???????# | | ????????????????????#""""""""""#???????# | | ???????????????????????????????????????# | | ???????????????????????????????????????# | | ???????????????????????????????????????########### | | ?????????????????????????????????????????????????? | | ?????????????????????????????????????????????????? | | ?????????????????????????????????????????????????? | | ?????????????????????????????????????????????????? | | ?????????????????????????????????????????????????? | | ?????????????????????????????????????????????????? | | ?????????????????????????????????????????????????? | | ?????????????????????????????????????????????????? | | ?????????????????????????????????????????????????? | | ?????????????????????????????????????????????????? | | ?????????????????????????????????????????????????? | | ?????????????????????????????????????????????????? | | ?????????????????????????????????????????????????? | | ?????????????????????????????????????????????????? | | ?????????????????????????????????????????????????? | | ?????????????????????????????????????????????????? | +----------------------------------------------------+ Best States ------------- Heat Dissipation 76 Energy Generation 65 Energy Capacity 1175 Matter Stores 300 Matter Capacity 300 Sight Range 22 Robot Scan Range 14 Terrain Scan Density 10 Armor Coverage 1200 Resistance: KI 20 Resistance: TH 15 Resistance: EM 25 Core Shielding 20 Weapon Cycling 20 Phase Shifting 15 Evasion (%) 55 Targeting Accuracy 14 Recoil Reduction 8 Offensive Hacking 10 Defensive Hacking 14 Relay Coupler Types 7 Relay Coupler Value 293 Authchip Count 1 Item Schematics ----------------- Huge Storage Unit | -10/Mines | Hacked Hpw. Tractor Beam | -9/Materials | Extracted Lgt. Cannon | -9/Materials | Extracted Lgt. Fission Core | -8/Materials | Scanalyzed Hacking Suite | -8/Materials | Scanalyzed Robot Schematics ------------------ None Fabricated ------------ Huge Storage Unit | x1 | -7/Factory Alien Tech Used ----------------- None Achievements -------------- None Challenges ------------ None Game ------ Seed MakeshiftBoreDisintegrator Manual? 0 Play Time 03:24:09 Cumulative 1481.2 hours Start 2024.02.22 @ 00:28:47 End 2024.02.23 @ 02:32:36 Sessions 3 Manual Loads 0 Difficulty Rogue Special Mode None Game No. 1030 Rogue 1026 Adventurer 4 Explorer 0 Win Type 0 Total 180 Types 133/11/12/7/2/1/3/7/4 Lore% 95 Gallery% 98 Achievement% 98 Wizard Run 0 Options --------- Layout 2 ASCII 0 Keyboard 1 Movement Vi Keybinds 0 Fullscreen 0 Font 24/Terminus Map View 59x48 Zoom Use 0% Tactical HUD 1 Map Filters NONE Filters NONE Steam 1 RUN: 464cccd5-d31f-4e53-97c0-100cde1e4eed